bitfinex-derivatives/quotes_SOLF0:USTF0_20240930
["timestamp","ask_amount","ask_price","bid_price","bid_amount"]
[1727661035117,3.1702,157.68,157.63,3.1711]
[1727661035324,1.2451,157.72,157.61,3.24795398]
[1727661035515,1.2451,157.72,157.63,19.51]
[1727661035827,4.4146,157.72,157.66,3.1705]
[1727661036025,1.40272,157.73,157.66,3.1705]
[1727661036223,0.12502,157.73,157.66,19.51]
[1727661037120,0.12502,157.73,157.68,19.51]
[1727661037512,0.12502,157.73,157.69,3.1698]
[1727661037711,0.12502,157.73,157.68,19.51]
[1727661037928,0.12502,157.79,157.71,19.51]
[1727661038220,0.12502,157.79,157.72,1.3321]
[1727661038526,0.12502,157.79,157.72,2.6963]
[1727661039224,0.12502,157.79,157.74,3.1689]
[1727661039225,3.29302,157.79,157.74,3.1689]
[1727661040021,0.12502,157.79,157.75,3.1687]
[1727661040228,0.12502,157.79,157.72,2.6963]
[1727661041315,3.29302,157.79,157.72,2.6963]
[1727661041727,0.12502,157.79,157.72,2.6963]
[1727661041921,3.29292,157.79,157.72,2.6963]
[1727661042123,0.12502,157.79,157.73,19.51]
[1727661042322,0.12502,157.79,157.77,3.1683]
[1727661042832,0.12502,157.79,157.78,3.1681]
[1727661044126,0.12502,157.79,157.77,3.1683]
[1727661044325,0.12502,157.85,157.76,19.51]
[1727661044525,3.1669,157.84,157.76,19.51]
[1727661044722,0.12502,157.85,157.76,19.51]
[1727661044928,0.12502,157.85,157.73,0.12502]
[1727661044929,0.12502,157.85,157.79,19.51]
[1727661045225,0.12502,157.85,157.84,3.1669]
[1727661045428,0.12502,157.85,157.82,19.51]
[1727661045820,0.12502,157.85,157.83,3.1669]
[1727661046337,0.12502,157.85,157.84,3.1669]
[1727661046634,0.12502,157.85,157.82,19.51]
[1727661047126,0.12502,157.85,157.8,2.5769]
[1727661048426,0.12502,157.85,157.79,19.51]
[1727661049633,0.12502,157.85,157.8,3.1676]
[1727661049829,0.12502,157.85,157.79,19.51]
[1727661050740,0.12502,157.85,157.8,3.1676]
[1727661050927,0.12502,157.85,157.79,19.51]
[1727661051328,0.12502,157.85,157.81,3.1674]
[1727661051831,0.12502,157.85,157.79,19.51]
[1727661052032,0.12502,157.85,157.82,19.51]
[1727661052233,0.12502,157.91,157.84,19.51]
[1727661052234,3.1658,157.9,157.84,19.51]
[1727661052536,3.1658,157.9,157.86,3.1665]
[1727661052738,3.1658,157.9,157.84,19.51]
[1727661052922,0.12502,157.91,157.82,19.51]
[1727661053121,3.1663,157.88,157.83,3.167]
[1727661053723,3.1663,157.87,157.83,3.167]
[1727661054232,0.12502,157.91,157.83,3.167]
[1727661054430,3.1662,157.88,157.84,3.1669]
[1727661054932,3.1662,157.88,157.83,3.1671]
[1727661057041,3.1662,157.88,157.84,3.1669]
[1727661057338,3.1662,157.88,157.82,19.51]
[1727661057540,3.1665,157.86,157.82,22.6773]
[1727661058033,0.12502,157.91,157.82,19.51]
[1727661058245,0.12502,157.91,157.83,3.167]
[1727661058540,0.12502,157.91,157.82,19.51]
[1727661059333,3.1662,157.88,157.84,3.1669]
[1727661059533,0.12502,157.91,157.82,19.51]
[1727661059833,0.12502,157.91,157.83,3.1671]
[1727661059834,3.1664,157.87,157.83,3.1671]
[1727661060032,0.12502,157.91,157.82,19.51]
[1727661060540,3.1663,157.88,157.83,3.1671]
[1727661060838,3.1663,157.88,157.82,19.51]
[1727661061036,3.1667,157.85,157.79,19.63502]
[1727661061235,0.12502,157.91,157.79,0.12502]
[1727661061236,19.51,157.9,157.79,0.12502]
[1727661061434,3.19895442,157.88,157.79,0.12502]
[1727661061740,3.1672,157.83,157.79,0.12502]
[1727661062142,1.3523,157.89,157.79,0.12502]
[1727661062341,3.1665,157.86,157.79,19.63502]
[1727661062532,1.3523,157.89,157.79,19.63502]
[1727661062935,1.3523,157.89,157.81,3.1675]
[1727661063441,3.1662,157.88,157.82,19.51]
[1727661063641,0.12502,157.91,157.82,19.51]
[1727661064051,3.1662,157.88,157.84,3.1668]
[1727661064440,0.12502,157.91,157.84,19.51]
[1727661064638,0.12502,157.91,157.87,19.51]
[1727661064843,0.12502,157.91,157.85,1.2519]
[1727661066046,0.12502,157.91,157.88,3.166]
[1727661066245,0.12502,157.91,157.87,19.51]
[1727661066843,0.12502,157.97,157.9,19.51]
[1727661067045,3.1649,157.94,157.9,22.6757]
[1727661067248,0.12502,157.97,157.9,19.51]
[1727661068347,0.12502,157.97,157.91,3.1655]
[1727661068348,3.1646,157.96,157.91,3.1655]
[1727661068535,0.12502,157.97,157.91,3.1655]
[1727661068934,0.12502,157.97,157.89,3.1659]
[1727661069146,0.12502,157.97,157.87,19.51]
[1727661069541,0.12502,157.97,157.86,3.1665]
[1727661069743,0.12502,157.97,157.85,2.68282]
[1727661070042,3.1653,157.93,157.88,3.166]
[1727661070251,0.12502,157.97,157.87,19.51]
[1727661070650,3.1653,157.93,157.88,3.166]
[1727661070843,0.12502,157.97,157.87,19.51]
[1727661071343,3.1651,157.94,157.9,3.1656]
[1727661071548,0.12502,157.97,157.9,19.51]
[1727661071852,3.1647,157.95,157.9,22.6756]
[1727661072052,3.1647,157.95,157.9,19.51]
[1727661072253,0.12502,157.97,157.9,19.51]
[1727661072451,3.1649,157.94,157.9,22.6757]
[1727661072750,0.12502,157.97,157.88,1.2815]
[1727661073550,0.12502,157.97,157.85,2.68282]
[1727661073947,3.1655,157.92,157.88,3.1661]
[1727661074161,0.12502,157.97,157.85,1.37692]
[1727661074450,19.51,157.96,157.85,0.12502]
[1727661075045,0.12502,157.97,157.85,0.12502]
[1727661075453,0.12502,157.97,157.87,19.51]
[1727661075648,3.1649,157.94,157.89,3.1659]
[1727661075848,0.12502,157.97,157.89,19.51]
[1727661076251,3.1649,157.94,157.9,3.1656]
[1727661076444,0.12502,157.97,157.89,19.51]
[1727661076856,3.1649,157.95,157.91,3.1655]
[1727661077448,0.12502,157.97,157.89,19.51]
[1727661077655,0.12502,157.97,157.9,3.1657]
[1727661078250,3.1651,157.94,157.9,3.1657]
[1727661078451,0.12502,157.97,157.88,1.3133]
[1727661078759,0.12502,157.97,157.87,1.2627]
[1727661079757,3.1656,157.91,157.87,4.429]
[1727661079963,0.12502,157.97,157.87,1.2627]
[1727661080151,0.12502,157.97,157.87,4.429]
[1727661080561,0.12502,157.97,157.87,1.2627]
[1727661080773,0.12502,157.97,157.88,3.166]
[1727661080949,0.12502,157.97,157.87,1.2627]
[1727661081462,0.12502,157.97,157.87,4.429]
[1727661081966,3.1657,157.91,157.87,4.429]
[1727661082170,0.12502,157.97,157.87,4.429]
[1727661082556,3.1649,157.94,157.87,4.429]
[1727661082764,0.12502,157.97,157.89,22.6758]
[1727661082965,0.12502,157.97,157.89,19.51]
[1727661083152,0.12502,157.97,157.91,19.51]
[1727661083359,0.12502,157.97,157.93,3.165]
[1727661083868,0.12502,157.97,157.89,19.51]
[1727661084058,0.12502,157.97,157.88,1.2923]
[1727661084260,0.12502,157.97,157.87,2.5759]
[1727661084966,0.12502,157.97,157.84,19.51]
[1727661085160,19.51,157.93,157.81,2.697]
[1727661085367,19.51,157.91,157.81,1.3667]
[1727661085668,3.1665,157.86,157.81,1.3667]
[1727661086373,4.47271703,157.9,157.79,0.12502]
[1727661086572,19.51,157.86,157.79,0.12502]
[1727661087060,3.1677,157.8,157.79,0.12502]
[1727661089062,19.51,157.88,157.79,0.12502]
[1727661089269,4.47271703,157.9,157.79,0.12502]
[1727661089572,4.47271703,157.9,157.8,3.1677]
[1727661090461,1.233,157.9,157.82,3.1673]
[1727661090666,1.233,157.9,157.79,19.63502]
[1727661090861,1.233,157.9,157.8,1.2776]
[1727661091364,1.233,157.9,157.81,1.3367]
[1727661091668,3.1665,157.86,157.82,3.1672]
[1727661092067,68.56502,157.91,157.81,20.8467]
[1727661092273,68.56502,157.91,157.81,1.3367]
[1727661092861,68.56502,157.91,157.8,1.2776]
[1727661093062,88.07502,157.91,157.79,0.12502]
[1727661093668,3.1677,157.8,157.79,0.12502]
[1727661094264,1.3538,157.87,157.79,0.12502]
[1727661094864,20.8638,157.87,157.79,0.12502]
[1727661095474,3.1677,157.8,157.79,0.12502]
[1727661099065,3.1689,157.74,157.73,0.12502]
[1727661102072,19.51,157.83,157.73,0.12502]
[1727661102272,20.8597,157.83,157.73,0.12502]
[1727661102468,3.1689,157.74,157.73,0.12502]
[1727661103479,3.1689,157.74,157.67,0.12502]
[1727661103480,3.1701,157.68,157.67,0.12502]
[1727661103985,3.1713,157.62,157.57,2.651]
[1727661105075,3.1712,157.63,157.57,2.651]
[1727661105384,19.51,157.71,157.57,2.651]
[1727661105882,19.51,157.71,157.6,3.1717]
[1727661106089,19.51,157.71,157.57,2.651]
[1727661106383,19.51,157.71,157.6,3.1717]
[1727661106882,3.171,157.64,157.59,3.1719]
[1727661107084,19.51,157.68,157.57,2.651]
[1727661107286,3.24496324,157.67,157.57,2.651]
[1727661107969,3.1712,157.63,157.58,3.172]
[1727661108172,19.51,157.65,157.52,19.51]
[1727661108782,3.1713,157.62,157.54,3.1729]
[1727661109180,3.1713,157.62,157.55,19.63502]
[1727661109383,3.1713,157.62,157.56,3.1725]
[1727661110089,1.3072,157.67,157.57,19.51]
[1727661110284,4.40587651,157.67,157.58,2.6337]
[1727661110579,4.40587651,157.67,157.55,19.63502]
[1727661110798,3.1713,157.62,157.55,0.12502]
[1727661111792,2.6271,157.64,157.55,0.12502]
[1727661111993,3.1726,157.56,157.55,0.12502]
[1727661112501,3.1724,157.57,157.55,0.12502]
[1727661112787,2.6271,157.64,157.55,0.12502]
[1727661112979,3.1726,157.56,157.55,0.12502]
[1727661120395,19.51,157.56,157.49,0.12502]
[1727661120995,3.1735,157.52,157.49,0.12502]
[1727661121298,1.2353,157.58,157.51,3.1734]
[1727661121501,1.2353,157.58,157.49,0.12502]
[1727661121502,3.1736,157.51,157.49,0.12502]
[1727661121796,19.51,157.56,157.49,0.12502]
[1727661122196,4.40346177,157.58,157.49,0.12502]
[1727661122794,3.1733,157.53,157.49,0.12502]
[1727661122996,4.40346177,157.58,157.49,0.12502]
[1727661123195,1.2353,157.58,157.49,0.12502]
[1727661123693,68.68502,157.61,157.54,3.1729]
[1727661124091,0.12502,157.61,157.53,19.51]
[1727661124291,3.1718,157.6,157.54,1.3508]
[1727661124492,0.12502,157.61,157.54,2.6577]
[1727661124694,0.12502,157.61,157.56,3.1725]
[1727661124894,0.12502,157.61,157.54,2.6577]
[1727661125291,3.1722,157.58,157.54,2.6577]
[1727661125693,0.12502,157.61,157.54,2.6577]
[1727661125900,0.12502,157.61,157.51,1.3135]
[1727661125901,3.1728,157.55,157.51,1.3135]
[1727661126398,19.63502,157.61,157.5,3.1737]
[1727661126399,3.13552568,157.59,157.5,3.1737]
[1727661126605,3.13552568,157.59,157.49,1.40812]
[1727661126896,3.11743062,157.58,157.49,1.40812]
[1727661127089,19.63502,157.61,157.49,1.40812]
[1727661127492,3.1734,157.52,157.49,1.40812]
[1727661128000,3.1727,157.56,157.49,4.58192]
[1727661128201,3.17581272,157.58,157.49,4.58192]
[1727661128398,19.63502,157.61,157.49,4.58192]
[1727661128596,19.63502,157.61,157.49,1.40812]
[1727661128799,0.12502,157.61,157.49,1.40812]
[1727661129108,0.12502,157.61,157.53,19.51]
[1727661129292,0.12502,157.61,157.49,1.40812]
[1727661129490,0.12502,157.61,157.5,1.16663341]
[1727661129791,3.1728,157.55,157.49,1.40812]
[1727661129994,3.1728,157.55,157.5,1.16664824]
[1727661130198,3.1728,157.55,157.5,3.1736]
[1727661130393,3.1731,157.54,157.49,1.40812]
[1727661130701,0.12502,157.61,157.49,1.40812]
[1727661130904,3.1727,157.56,157.52,3.1733]
[1727661131209,0.12502,157.61,157.5,19.51]
[1727661131509,0.12502,157.61,157.53,19.51]
[1727661131510,3.1718,157.6,157.53,19.51]
[1727661131899,0.12502,157.61,157.56,3.1724]
[1727661132098,0.12502,157.61,157.53,19.51]
[1727661132605,3.1718,157.6,157.57,3.1722]
[1727661132794,0.12502,157.61,157.55,19.51]
[1727661132991,0.12502,157.61,157.6,3.1717]
[1727661133401,0.12502,157.67,157.58,19.51]
[1727661133605,3.29542,157.67,157.58,19.51]
[1727661134102,0.12502,157.67,157.58,19.51]
[1727661134700,0.12502,157.67,157.63,3.171]
[1727661134906,0.12502,157.67,157.61,19.51]
[1727661135202,2.80842,157.73,157.64,19.51]
[1727661135404,2.80842,157.73,157.61,19.51]
[1727661135405,0.12502,157.73,157.66,19.51]
[1727661135903,0.12502,157.73,157.7,3.1697]
[1727661136307,0.12502,157.73,157.67,1.343]
[1727661136504,0.12502,157.73,157.69,3.1699]
[1727661136806,0.12502,157.73,157.67,1.343]
[1727661137305,0.12502,157.73,157.68,3.1701]
[1727661137306,3.29422,157.73,157.68,3.1701]
[1727661137509,0.12502,157.73,157.63,19.51]
[1727661137710,0.12502,157.73,157.62,2.6857]
[1727661138007,0.12502,157.73,157.63,19.51]
[1727661138210,3.1693,157.72,157.63,19.51]
[1727661138509,0.12502,157.73,157.63,19.51]
[1727661138708,0.12502,157.73,157.64,1.3279]
[1727661139010,3.1697,157.7,157.64,1.3279]
[1727661139411,0.12502,157.73,157.64,1.3279]
[1727661139610,0.12502,157.73,157.65,3.1707]
[1727661140104,3.1699,157.7,157.65,3.1707]
[1727661140499,0.12502,157.73,157.65,3.1707]
[1727661140699,0.12502,157.73,157.64,1.3279]
[1727661140700,3.1697,157.71,157.64,4.4987]
[1727661140907,0.12502,157.73,157.64,1.3279]
[1727661141303,0.12502,157.73,157.66,19.51]
[1727661141703,0.12502,157.73,157.65,3.1705]
[1727661141912,0.12502,157.73,157.64,1.3279]
[1727661142207,3.1702,157.68,157.64,1.3279]
[1727661143109,3.1706,157.66,157.61,0.12502]
[1727661143318,19.51,157.69,157.61,0.12502]
[1727661143701,19.51,157.66,157.55,0.12502]
[1727661143903,1.39002,157.73,157.55,19.63502]
[1727661143904,0.12502,157.67,157.55,19.63502]
[1727661144108,0.12502,157.67,157.63,3.1711]
[1727661144512,0.12502,157.67,157.59,1.2688]
[1727661144910,0.12502,157.67,157.63,3.1711]
[1727661146438,0.12502,157.67,157.59,1.2688]
[1727661146718,22.73055537,157.66,157.56,2.6638]
[1727661146915,19.51,157.66,157.55,0.12502]
[1727661147216,3.1722,157.58,157.55,0.12502]
[1727661147406,19.51,157.63,157.55,0.12502]
[1727661147609,3.1713,157.62,157.55,0.12502]
[1727661147808,0.12502,157.67,157.55,0.12502]
[1727661148012,3.16245778,157.66,157.58,3.1721]
[1727661148325,3.1715,157.62,157.55,0.12502]
[1727661148521,3.10342946,157.66,157.55,0.12502]
[1727661148907,4.41202946,157.66,157.55,0.12502]
[1727661149307,3.1712,157.63,157.55,3.29772]
[1727661149523,31.71,157.65,157.55,0.12502]
[1727661149911,3.1719,157.6,157.55,0.12502]
[1727661150614,2.5228,157.64,157.55,0.12502]
[1727661151316,31.71,157.62,157.55,0.12502]
[1727661151618,3.1725,157.57,157.55,0.12502]
[1727661153221,3.1726,157.56,157.55,0.12502]
[1727661153809,31.71,157.62,157.55,0.12502]
[1727661154223,2.5228,157.64,157.55,0.12502]
[1727661154409,3.172,157.59,157.55,0.12502]
[1727661155118,3.1716,157.61,157.56,3.1725]
[1727661155520,2.5228,157.64,157.55,0.12502]
[1727661155720,3.1714,157.62,157.55,0.12502]
[1727661156024,1.3086,157.66,157.56,31.71]
[1727661156230,0.12502,157.67,157.59,31.71]
[1727661156732,3.1709,157.65,157.59,31.71]
[1727661156914,0.12502,157.67,157.59,31.71]
[1727661157315,0.12502,157.67,157.61,3.1714]
[1727661158015,3.1706,157.66,157.59,31.71]
[1727661158219,0.12502,157.67,157.62,3.1712]
[1727661158519,0.12502,157.67,157.6,1.3133]
[1727661158520,3.1706,157.66,157.6,1.3133]
[1727661158917,0.12502,157.67,157.62,31.71]
[1727661159121,0.12502,157.67,157.62,3.1713]
[1727661159425,0.12502,157.67,157.6,3.9144]
[1727661159625,0.12502,157.67,157.6,1.3133]
[1727661159821,3.1708,157.65,157.6,1.3133]
[1727661160321,3.1708,157.65,157.61,3.1714]
[1727661160519,0.12502,157.67,157.6,1.3133]
[1727661160921,0.12502,157.67,157.56,34.3111]
[1727661161116,3.1713,157.63,157.56,35.5774]
[1727661161321,0.12502,157.67,157.58,3.1721]
[1727661161731,3.22277137,157.66,157.56,3.8674]
[1727661161930,3.22277137,157.66,157.57,3.1722]
[1727661162133,3.1717,157.6,157.56,3.8674]
[1727661162432,0.12502,157.67,157.56,3.8674]
[1727661163425,0.12502,157.67,157.56,1.2663]
[1727661163820,3.1715,157.62,157.56,1.2663]
[1727661164024,3.13913582,157.66,157.56,1.2663]
[1727661164224,0.12502,157.67,157.56,1.2663]
[1727661164425,3.1719,157.6,157.56,4.4388]
[1727661164922,3.1715,157.61,157.57,3.1723]
[1727661166031,3.1719,157.6,157.56,3.1724]
[1727661166234,0.12502,157.67,157.55,0.12502]
[1727661166835,3.1717,157.61,157.56,3.1724]
[1727661167831,3.1711,157.63,157.56,3.1724]
[1727661168036,19.51,157.64,157.55,0.12502]
[1727661168436,3.1719,157.6,157.55,3.29762]
[1727661168636,19.51,157.64,157.55,3.29762]
[1727661168835,3.1711,157.64,157.55,0.12502]
[1727661169037,19.63502,157.67,157.57,3.1722]
[1727661169529,19.63502,157.67,157.55,0.12502]
[1727661170141,19.51,157.64,157.55,0.12502]
[1727661170343,5.83642314,157.63,157.55,0.12502]
[1727661170531,3.1716,157.61,157.55,0.12502]
[1727661170731,2.6684,157.63,157.55,0.12502]
[1727661171441,1.2477,157.62,157.55,0.12502]
[1727661171631,3.1726,157.56,157.55,0.12502]
[1727661173933,1.2477,157.62,157.55,0.12502]
[1727661174446,20.7577,157.62,157.55,0.12502]
[1727661174737,3.1726,157.56,157.55,0.12502]
[1727661181639,1.2477,157.62,157.55,0.12502]
[1727661181951,2.6684,157.63,157.55,0.12502]
[1727661182848,3.1719,157.6,157.55,0.12502]
[1727661183049,2.6684,157.63,157.55,0.12502]
[1727661184644,3.1726,157.56,157.55,0.12502]
[1727661189960,3.1722,157.58,157.55,0.12502]
[1727661190260,2.6684,157.63,157.55,0.12502]
[1727661191254,3.1716,157.61,157.55,0.12502]
[1727661191555,68.58,157.66,157.58,19.51]
[1727661191757,1.2694,157.7,157.58,19.51]
[1727661192150,13.69868534,157.7,157.58,19.51]
[1727661192349,3.1711,157.64,157.6,3.1717]
[1727661192552,2.5236,157.71,157.58,19.51]
[1727661192751,3.793,157.71,157.58,19.51]
[1727661192957,19.51,157.69,157.57,2.6151]
[1727661193559,3.1715,157.62,157.57,2.6151]
[1727661193760,19.51,157.69,157.57,2.6151]
[1727661194155,3.1713,157.63,157.57,2.6151]
[1727661194459,3.793,157.71,157.57,2.6151]
[1727661195158,19.51,157.69,157.57,2.6151]
[1727661195859,3.1709,157.64,157.58,3.1721]
[1727661196057,3.1709,157.64,157.57,2.6151]
[1727661196562,3.1711,157.63,157.59,3.1718]
[1727661196756,3.1711,157.63,157.57,2.6151]
[1727661196962,3.793,157.71,157.6,3.1717]
[1727661197956,3.1708,157.65,157.59,19.51]
[1727661198262,3.1708,157.65,157.62,3.1713]
[1727661198655,3.1706,157.66,157.62,3.1713]
[1727661199359,3.1706,157.66,157.59,19.51]
[1727661199661,92.88805685,157.72,157.64,19.51]
[1727661199861,92.88805685,157.72,157.65,1.3103]
[1727661200965,92.88805685,157.72,157.62,19.51]
[1727661201168,3.17,157.69,157.61,0.12502]
[1727661201364,15.06884694,157.71,157.61,0.12502]
[1727661201874,15.06884694,157.71,157.62,3.1713]
[1727661202753,15.06884694,157.71,157.61,0.12502]
[1727661202951,15.06884694,157.71,157.63,3.1711]
[1727661203160,12.43924694,157.71,157.62,19.51]
[1727661203358,3.17,157.69,157.63,1.2709]
[1727661203667,3.17,157.69,157.65,3.1707]
[1727661204368,3.1702,157.68,157.64,3.1709]
[1727661204568,92.88805685,157.72,157.63,1.2709]
[1727661205472,12.44871546,157.71,157.63,1.2709]
[1727661205863,3.1703,157.68,157.64,3.1709]
[1727661206161,92.88805685,157.72,157.63,1.2709]
[1727661206561,3.1701,157.69,157.65,3.1707]
[1727661206969,12.44937089,157.71,157.63,4.45023529]
[1727661207266,3.1703,157.68,157.64,3.1709]
[1727661207770,3.1703,157.68,157.65,3.1707]
[1727661208454,3.17,157.69,157.65,3.1707]
[1727661208657,3.17,157.69,157.66,3.1705]
[1727661209162,3.17,157.69,157.65,19.51]
[1727661209567,3.1702,157.68,157.65,15.3507]
[1727661209866,3.1702,157.68,157.65,12.18]
[1727661210864,92.88805685,157.72,157.65,12.18]
[1727661211060,3.1701,157.69,157.65,12.18]
[1727661211259,92.88805685,157.72,157.67,12.18]
[1727661211464,92.88805685,157.72,157.67,15.3503]
[1727661211661,3.1698,157.7,157.67,15.3503]
[1727661212369,92.88805685,157.72,157.67,15.3503]
[1727661212370,3.1696,157.71,157.67,15.3503]
[1727661212967,0.12502,157.73,157.69,15.3498]
[1727661213166,0.12502,157.73,157.71,12.18]
[1727661213470,1.3335,157.84,157.71,12.18]
[1727661213769,1.3335,157.84,157.76,12.18]
[1727661213965,3.29312,157.79,157.76,12.18]
[1727661214171,0.12502,157.79,157.76,12.18]
[1727661215163,3.1671,157.83,157.78,15.3481]
[1727661215477,3.8416,157.89,157.81,12.18]
[1727661215665,3.8416,157.89,157.81,19.46]
[1727661215891,3.29192,157.85,157.81,19.46]
[1727661217375,3.29192,157.85,157.81,22.6275]
[1727661217574,0.12502,157.85,157.81,22.6275]
[1727661218271,0.12502,157.91,157.84,22.6269]
[1727661218473,0.12502,157.91,157.84,19.46]
[1727661219066,3.1659,157.89,157.84,19.46]
[1727661219268,0.12502,157.91,157.84,19.46]
[1727661219770,3.1661,157.89,157.84,19.46]
[1727661220273,0.12502,157.91,157.84,19.46]
[1727661221168,0.12502,157.91,157.87,19.46]
[1727661221875,0.12502,157.97,157.9,19.46]
[1727661222265,3.1651,157.94,157.9,19.46]
[1727661222681,0.12502,157.97,157.9,19.46]
[1727661222870,0.12502,157.97,157.86,3.1665]
[1727661223387,3.1657,157.91,157.86,3.1665]
[1727661223682,3.1657,157.91,157.87,3.1663]
[1727661224077,3.1657,157.91,157.85,19.58502]
[1727661224670,3.1653,157.93,157.87,19.46]
[1727661224867,0.12502,157.97,157.85,0.12502]
[1727661224868,0.12502,157.97,157.9,19.46]
[1727661225071,0.12502,157.97,157.9,22.6255]
[1727661225371,0.12502,157.97,157.9,19.46]
[1727661225771,3.1649,157.95,157.9,22.6257]
[1727661226075,0.12502,157.97,157.9,22.6257]
[1727661226076,0.12502,157.97,157.9,19.46]
[1727661226486,3.1647,157.95,157.9,19.46]
[1727661226674,0.12502,157.97,157.85,0.12502]
[1727661226869,22.78664809,157.97,157.85,0.12502]
[1727661227481,3.1653,157.93,157.88,3.1661]
[1727661227778,0.12502,157.97,157.87,1.3067]
[1727661227979,0.12502,157.97,157.89,19.46]
[1727661228179,3.1649,157.94,157.89,22.6259]
[1727661228381,3.1649,157.94,157.89,19.46]
[1727661228882,3.1649,157.94,157.89,22.6259]
[1727661229272,3.1649,157.94,157.9,3.1657]
[1727661230180,0.12502,157.97,157.91,3.1654]
[1727661230379,0.12502,157.97,157.92,19.46]
[1727661231388,3.1648,157.95,157.92,19.46]
[1727661231878,0.12502,158.03,157.91,3.1654]
[1727661231879,0.12502,158.03,157.94,19.46]
[1727661232179,0.12502,158.03,157.97,19.46]
[1727661233282,0.12502,158.03,157.95,19.46]
[1727661233882,3.164,157.99,157.95,19.46]
[1727661234671,3.1643,157.98,157.95,19.46]
[1727661234871,0.12502,158.03,157.95,19.46]
[1727661235087,3.1641,157.99,157.95,19.46]
[1727661236074,0.12502,158.03,157.92,3.15283181]
[1727661236283,0.12502,158.03,157.91,19.58502]
[1727661236779,3.1643,157.98,157.93,3.165]
[1727661236982,0.12502,158.03,157.94,19.46]
[1727661237373,0.12502,158.03,157.97,19.46]
[1727661237591,0.12502,158.03,158.02,12.15]
[1727661239597,0.12502,158.03,158.0,22.6037]
[1727661240085,0.12502,158.03,158.0,19.44]
[1727661241084,0.12502,158.03,157.98,19.44]
[1727661241787,3.1635,158.02,157.98,19.44]
[1727661241995,0.12502,158.03,157.98,22.604]
[1727661242181,0.12502,158.03,157.98,19.44]
[1727661242182,3.1634,158.02,157.98,19.44]
[1727661242887,3.1634,158.02,157.98,22.6041]
[1727661243084,3.1634,158.02,157.98,19.44]
[1727661243286,0.12502,158.03,157.95,19.44]
[1727661243481,0.12502,158.03,157.95,22.6046]
[1727661243678,0.12502,158.03,157.95,19.44]
[1727661243879,3.1638,158.0,157.95,19.44]
[1727661244085,3.1638,158.0,157.95,22.6047]
[1727661244684,3.1638,158.0,157.96,3.1645]
[1727661245281,3.1639,157.99,157.95,22.6047]
[1727661245788,0.12502,158.03,157.95,19.44]
[1727661245983,0.12502,158.03,157.92,19.44]
[1727661245984,2.5843,158.02,157.92,19.44]
[1727661246685,2.5843,158.02,157.94,19.44]
[1727661247386,2.5843,158.02,157.91,3.25703425]
[1727661247387,0.12502,158.03,158.0,19.44]
[1727661247785,0.12502,158.03,157.91,3.25703425]
[1727661247786,0.12502,158.03,157.97,19.44]
[1727661248378,3.28822,158.03,157.97,19.44]
[1727661248986,3.28822,158.03,157.99,3.1637]
[1727661249194,3.28822,158.03,157.97,19.44]
[1727661249787,3.28822,158.03,158.01,3.1634]
[1727661249788,0.12502,158.03,158.01,3.1634]
[1727661249993,0.12502,158.03,158.0,19.44]